bitfinex/quotes_BTCUSD_20250829
["timestamp","ask_amount","ask_price","bid_price","bid_amount"]
[1756474223980,1.07675003,110630.0,110620.0,0.00628]
[1756474224195,0.98643357,110630.0,110620.0,0.18387913]
[1756474224405,0.89596725,110630.0,110620.0,0.19105913]
[1756474224829,1.07675003,110630.0,110620.0,0.01026]
[1756474225030,5.89596725,110630.0,110620.0,0.19105913]
[1756474225255,0.02511162,110630.0,110620.0,0.18605913]
[1756474225460,0.89596725,110630.0,110620.0,0.18605913]
[1756474226075,0.02511162,110630.0,110620.0,0.18605913]
[1756474226693,0.02611162,110630.0,110620.0,0.20799795]
[1756474226895,0.02606799,110630.0,110620.0,0.29629427]
[1756474227109,0.03437629,110630.0,110620.0,0.63629427]
[1756474227317,0.03437629,110630.0,110620.0,1.5071499]
[1756474227533,0.18071744,110670.0,110660.0,0.18073377]
[1756474227748,0.0146839,110670.0,110660.0,0.18591377]
[1756474227955,0.00845219,110670.0,110660.0,0.18591377]
[1756474228600,0.87930782,110670.0,110660.0,0.18591377]
[1756474228813,0.00845219,110670.0,110660.0,0.18591377]
[1756474229044,1.06200526,110670.0,110650.0,0.18386578]
[1756474229254,0.87085563,110660.0,110650.0,0.18386578]
[1756474229458,0.87916457,110660.0,110650.0,0.18591578]
[1756474229665,1.06187834,110660.0,110640.0,0.25929707]
[1756474229879,0.87085563,110650.0,110640.0,0.19290707]
[1756474230097,0.87916457,110650.0,110640.0,0.18591875]
[1756474230317,1.06208468,110650.0,110630.0,0.25599057]
[1756474230528,0.87085563,110640.0,110630.0,0.25599057]
[1756474230747,0.87916457,110640.0,110630.0,0.25804057]
[1756474230956,0.87916457,110640.0,110630.0,0.18592627]
[1756474231378,0.00830894,110640.0,110630.0,0.19546942]
[1756474231606,0.18074081,110660.0,110650.0,0.18075011]
[1756474231607,0.8791715,110660.0,110650.0,0.18075011]
[1756474231836,0.53189656,110670.0,110660.0,0.18073377]
[1756474231837,0.00014325,110670.0,110660.0,0.18073377]
[1756474232060,0.00014325,110670.0,110650.0,0.00313]
[1756474232061,1.05369632,110670.0,110650.0,0.00313]
[1756474232281,0.18076644,110640.0,110620.0,0.096779]
[1756474232493,6.05361841,110630.0,110620.0,0.027259]
[1756474232708,1.06193956,110630.0,110620.0,0.027259]
[1756474232929,6.06193956,110630.0,110620.0,8e-05]
[1756474233428,6.40819093,110630.0,110620.0,8e-05]
[1756474233631,6.40962093,110630.0,110620.0,8e-05]
[1756474233845,6.51713416,110630.0,110620.0,0.00055689]
[1756474234059,0.52079913,110620.0,110610.0,1e-08]
[1756474234276,7.48114329,110620.0,110610.0,1e-08]
[1756474234492,7.45315901,110620.0,110610.0,1e-08]
[1756474234706,7.48566028,110620.0,110610.0,1e-08]
[1756474234918,0.18091361,110550.0,110540.0,0.0721143]
[1756474235131,6.07207262,110550.0,110540.0,0.0721143]
[1756474235347,0.18094414,110540.0,110520.0,0.23095991]
[1756474235556,5.18094414,110540.0,110520.0,0.23409183]
[1756474235797,6.40872952,110530.0,110520.0,0.05]
[1756474236012,6.49702584,110530.0,110520.0,0.05]
[1756474236227,6.4276831,110530.0,110520.0,0.05]
[1756474236436,6.8070412,110530.0,110520.0,0.05]
[1756474236670,6.85875509,110530.0,110520.0,0.05]
[1756474236896,6.92969391,110530.0,110520.0,0.05]
[1756474237168,7.03315786,110530.0,110520.0,0.05]
[1756474237371,7.08318283,110530.0,110520.0,0.05]
[1756474237598,6.78984723,110530.0,110520.0,0.05]
[1756474237834,6.97079357,110530.0,110520.0,0.05]
[1756474238506,0.52097909,110510.0,110500.0,0.03842201]
[1756474238724,0.18102824,110480.0,110470.0,8e-05]
[1756474238943,6.83488136,110480.0,110470.0,1e-08]
[1756474239170,0.1811102,110430.0,110420.0,0.0721143]
[1756474239395,0.1811102,110430.0,110410.0,0.0002]
[1756474239396,0.5211266,110420.0,110410.0,0.0002]
[1756474239606,5.63843994,110420.0,110410.0,0.0002]
[1756474239822,6.88534047,110420.0,110410.0,0.0002]
[1756474240045,5.63843994,110420.0,110410.0,0.0002]
[1756474240262,0.03172997,110420.0,110410.0,0.18666596]
[1756474240496,0.0166061,110420.0,110410.0,0.52666596]
[1756474240714,0.0166061,110420.0,110410.0,0.18666596]
[1756474240942,0.0166061,110420.0,110410.0,0.00034295]
[1756474240943,6.76675588,110420.0,110410.0,0.00034295]
[1756474241157,5.5397127,110420.0,110410.0,0.00034295]
[1756474241371,5.5377327,110420.0,110410.0,0.00034295]
[1756474241821,5.0166061,110420.0,110410.0,0.00552295]
[1756474242270,6.25734315,110420.0,110410.0,0.00752295]
[1756474242492,0.0166061,110420.0,110410.0,0.19093024]
[1756474242711,0.19154177,110480.0,110450.0,0.18107582]
[1756474242931,0.19154177,110480.0,110450.0,0.07273]
[1756474242932,6.22561318,110470.0,110450.0,0.07273]
[1756474243155,6.40667419,110460.0,110450.0,0.07273]
[1756474243379,1.22561318,110480.0,110470.0,0.19009685]
[1756474243645,0.25915914,110510.0,110470.0,0.1952768]
[1756474243646,0.25598914,110510.0,110470.0,0.1952768]
[1756474243870,5.19321559,110500.0,110470.0,0.00205]
[1756474244090,5.19321559,110500.0,110450.0,0.0696]
[1756474244091,0.18104462,110470.0,110450.0,0.0696]
[1756474244304,6.40667419,110460.0,110450.0,0.0696]
[1756474244525,1.56561318,110470.0,110460.0,0.18106101]
[1756474244738,6.56561318,110470.0,110450.0,0.25380741]
[1756474244972,6.22561318,110460.0,110450.0,0.0696]
[1756474245183,6.50824958,110460.0,110450.0,0.0696]
[1756474245393,6.51358958,110460.0,110450.0,0.0696]
[1756474245612,0.52104497,110470.0,110450.0,0.0696]
[1756474245613,0.00047659,110480.0,110450.0,0.25585741]
[1756474245830,0.00047659,110480.0,110470.0,0.18104462]
[1756474246045,0.00047659,110480.0,110470.0,0.26934094]
[1756474246256,0.01417373,110490.0,110480.0,0.18102824]
[1756474246738,0.01417373,110490.0,110460.0,0.19011406]
[1756474246739,6.42422151,110490.0,110460.0,0.19011406]
[1756474246983,6.42422151,110490.0,110450.0,0.25067603]
[1756474246984,1.56561318,110470.0,110450.0,0.25067603]
[1756474247217,0.002,110500.0,110480.0,0.18102301]
[1756474247482,0.00012909,110490.0,110480.0,0.26931933]
[1756474247711,0.002,110500.0,110490.0,0.18101185]
[1756474247934,1.23033766,110550.0,110540.0,0.18092998]
[1756474248154,0.01889068,110550.0,110540.0,0.18297998]
[1756474248365,1.24450386,110550.0,110530.0,0.25054634]
[1756474248580,1.22561318,110550.0,110540.0,0.18092998]
[1756474248854,1.23977498,110580.0,110570.0,0.18088088]
[1756474249071,0.0141618,110580.0,110570.0,0.18088088]
[1756474249297,0.3004416,110620.0,110580.0,0.18086453]
[1756474249298,0.26269155,110620.0,110580.0,0.18086453]
[1756474249551,0.18987341,110600.0,110570.0,0.1808695]
[1756474249785,0.0081625,110600.0,110590.0,0.18084366]
[1756474250021,0.5,110590.0,110580.0,0.18086453]
[1756474250246,6.5081428,110590.0,110570.0,0.00014295]
[1756474250475,5.0,110580.0,110570.0,0.18328473]
[1756474250702,0.19818389,110610.0,110580.0,0.18801197]
[1756474250931,1.40847135,110590.0,110580.0,0.005]
[1756474251153,1.41663385,110590.0,110580.0,0.005]
[1756474251415,6.84814017,110590.0,110580.0,0.013]
[1756474251640,5.63077489,110590.0,110580.0,0.00975]
[1756474251865,6.5961832,110590.0,110580.0,0.00975]
[1756474252103,6.5961832,110590.0,110580.0,0.01275]
[1756474252104,6.78225137,110590.0,110580.0,0.01275]
[1756474252555,6.78225137,110590.0,110580.0,0.0065]
[1756474252556,6.86433383,110590.0,110580.0,0.0065]
[1756474252778,6.86433383,110590.0,110570.0,0.00014295]
[1756474252779,0.52086453,110580.0,110570.0,0.00014295]
[1756474252989,6.85159333,110580.0,110570.0,0.00014295]
[1756474253203,6.93889579,110580.0,110570.0,0.00014295]
[1756474253419,0.52091361,110550.0,110540.0,0.0721143]
[1756474253637,6.75632533,110550.0,110540.0,0.0721143]
[1756474253855,6.75953533,110550.0,110540.0,0.0721143]
[1756474254079,6.75632533,110550.0,110540.0,0.0721143]
[1756474254292,0.01416385,110570.0,110560.0,0.18089725]
[1756474254508,0.01416385,110570.0,110560.0,0.34177357]
[1756474254745,0.01416385,110570.0,110560.0,0.16087632]
[1756474254964,1.22561318,110570.0,110560.0,0.16087632]
[1756474255228,1.42451846,110570.0,110540.0,0.00298]
[1756474255446,0.01651402,110570.0,110560.0,0.003]
[1756474255664,1.77198856,110570.0,110560.0,0.003]
[1756474256122,0.18091361,110550.0,110540.0,0.00298]
[1756474256345,0.18092998,110540.0,110530.0,0.0696]
[1756474256572,1.42305718,110540.0,110530.0,0.0696]
[1756474256786,0.18097719,110520.0,110510.0,0.0696]
[1756474256987,1.4065759,110520.0,110510.0,0.00298]
[1756474257200,0.01651653,110520.0,110510.0,0.00298]
[1756474257414,0.18097909,110510.0,110490.0,0.00298]
[1756474257619,0.18097909,110510.0,110490.0,0.18399095]
[1756474257840,0.18099547,110500.0,110490.0,0.00298]
[1756474258046,1.4906643,110500.0,110490.0,0.07258]
[1756474258255,1.32621159,110500.0,110490.0,0.25359185]
[1756474258473,0.01654276,110500.0,110490.0,0.34188817]
[1756474258676,0.34012942,110520.0,110490.0,0.35093876]
[1756474258677,1.30979825,110520.0,110490.0,0.35093876]
[1756474259067,0.01667131,110520.0,110510.0,0.18097909]
[1756474259279,0.01667131,110520.0,110510.0,0.18395909]
[1756474259704,0.01667131,110520.0,110510.0,0.18895909]
[1756474260131,0.01667131,110520.0,110510.0,0.18395909]
[1756474260374,0.01667131,110520.0,110510.0,0.27225541]
[1756474260576,0.00012942,110520.0,110510.0,0.27225541]
[1756474261471,1.32637385,110520.0,110510.0,0.002]
[1756474261685,0.01670502,110520.0,110510.0,0.18497909]
[1756474261900,0.01670502,110520.0,110510.0,0.18595909]
[1756474262117,0.01670502,110520.0,110510.0,0.27425541]
[1756474262340,0.01670502,110520.0,110510.0,0.18797909]
[1756474262556,0.01670502,110520.0,110510.0,0.19095909]
[1756474262792,0.01670502,110520.0,110510.0,0.18595909]
[1756474263013,0.01670502,110520.0,110510.0,0.27425541]
[1756474263672,1.32637385,110520.0,110510.0,0.18097909]
[1756474263905,0.01670502,110520.0,110510.0,0.27725541]
[1756474264359,0.01670502,110520.0,110510.0,0.27525541]
[1756474264573,0.01670502,110520.0,110510.0,0.18695909]
[1756474264784,0.01670502,110520.0,110510.0,0.18895909]
[1756474264996,0.01670502,110520.0,110510.0,0.27725541]
[1756474265206,0.01670502,110520.0,110510.0,0.27625541]
[1756474265432,0.01670502,110520.0,110510.0,0.27825541]
[1756474265637,0.01670502,110520.0,110510.0,0.27425541]
[1756474265846,0.01670502,110520.0,110510.0,0.27641541]
[1756474266052,0.01670502,110520.0,110510.0,0.28041541]
[1756474266939,0.01676699,110520.0,110510.0,0.27841541]
[1756474267605,0.01676699,110520.0,110510.0,0.18497909]
[1756474267812,0.01676699,110520.0,110510.0,0.19395909]
[1756474268056,0.19772971,110520.0,110510.0,0.19597909]
[1756474268258,0.01676699,110520.0,110510.0,0.19213909]
[1756474268466,0.01676699,110520.0,110510.0,0.27941541]
[1756474268686,0.01676699,110520.0,110510.0,0.19613909]
[1756474268893,0.01676699,110520.0,110510.0,0.28741541]
[1756474269531,0.01676699,110520.0,110510.0,0.62741541]
[1756474270393,0.01676699,110520.0,110510.0,0.62341541]
[1756474270607,0.01676699,110520.0,110510.0,0.61441541]
[1756474270813,0.01676699,110520.0,110510.0,0.62341541]
[1756474271034,0.01676699,110520.0,110510.0,0.63295856]
[1756474271255,0.01676699,110520.0,110510.0,0.61941541]
[1756474271470,0.01676699,110520.0,110510.0,0.62441541]
[1756474271681,0.025112,110520.0,110510.0,0.29141541]
[1756474271903,0.025112,110520.0,110510.0,0.28641541]
[1756474272111,0.025112,110520.0,110510.0,0.28141541]
[1756474272535,0.025112,110520.0,110510.0,0.28441541]
[1756474272771,0.025112,110520.0,110510.0,0.62441541]
[1756474272974,0.0721143,110550.0,110510.0,0.62441541]
[1756474272975,0.11828771,110570.0,110560.0,0.18089725]
[1756474273190,0.11828771,110570.0,110560.0,0.25049725]
[1756474273191,0.09150411,110570.0,110560.0,0.25049725]
[1756474273400,0.09352542,110570.0,110560.0,0.25049725]
[1756474273608,0.09980028,110570.0,110560.0,0.2446067]
[1756474273822,0.00012942,110570.0,110560.0,0.25928985]
[1756474274036,0.03200898,110600.0,110590.0,0.18084817]
[1756474274323,0.02602872,110600.0,110590.0,0.32327134]
[1756474274561,0.01975266,110600.0,110590.0,0.32027134]
[1756474274780,0.00047733,110600.0,110590.0,0.31729134]
[1756474274991,0.00047733,110600.0,110590.0,0.22683502]
[1756474275194,0.02179251,110600.0,110590.0,0.25044817]
[1756474275408,0.02179251,110600.0,110590.0,0.0696]
[1756474275409,0.20262433,110600.0,110590.0,0.0696]
[1756474275621,1.56734134,110600.0,110590.0,0.0696]
[1756474275831,0.07684069,110600.0,110590.0,0.24944817]
[1756474276043,0.02606525,110600.0,110590.0,0.24944817]
[1756474276251,0.01978251,110600.0,110590.0,0.25458817]
[1756474276487,0.01978251,110600.0,110590.0,0.24944817]
[1756474276488,0.00047733,110600.0,110590.0,0.24944817]
[1756474276695,0.01977417,110600.0,110590.0,0.24944817]
[1756474276907,0.02178417,110600.0,110590.0,0.24944817]
[1756474277117,0.02178417,110600.0,110590.0,0.0686]
[1756474277118,0.20582599,110600.0,110590.0,0.0686]
[1756474277334,0.02806843,110600.0,110590.0,0.24944817]
[1756474277549,0.02605843,110600.0,110590.0,0.25144817]
[1756474277770,0.20890215,110600.0,110590.0,0.0706]
[1756474277990,1.86178098,110600.0,110590.0,0.0706]
[1756474278216,1.95007715,110600.0,110590.0,0.002]
[1756474278442,0.36606018,110600.0,110590.0,0.18284817]
[1756474278667,0.05806916,110600.0,110590.0,0.18797817]
[1756474278894,0.01977417,110600.0,110590.0,0.18797817]
[1756474279355,0.01977417,110600.0,110590.0,0.18284817]
[1756474279575,1.42668801,110600.0,110590.0,0.002]
[1756474279787,1.52428802,110600.0,110590.0,0.002]
[1756474280253,0.300226,110600.0,110590.0,0.002]
[1756474280446,1.4359917,110600.0,110590.0,0.002]
[1756474280876,1.25214775,110600.0,110590.0,0.18284817]
[1756474281082,1.43297957,110600.0,110590.0,0.002]
[1756474281293,1.43599957,110600.0,110590.0,0.002]
[1756474281734,6.80808203,110600.0,110590.0,0.002]
[1756474281939,6.9727332,110600.0,110590.0,0.002]
[1756474282621,6.82401305,110600.0,110590.0,0.002]
[1756474282845,6.85617717,110600.0,110590.0,0.002]
[1756474283048,6.88825963,110600.0,110590.0,0.002]
[1756474283257,6.916601,110600.0,110590.0,0.002]
[1756474283667,6.88825963,110600.0,110590.0,0.002]
[1756474283877,6.88825963,110600.0,110570.0,0.18992444]
[1756474283878,0.18086453,110580.0,110570.0,0.18992444]
[1756474284097,0.18088088,110570.0,110550.0,0.25951925]
[1756474284306,0.18089725,110560.0,110550.0,0.25047361]
[1756474284513,1.41326296,110560.0,110550.0,0.06956]
[1756474284850,1.43838845,110560.0,110550.0,0.06956]
[1756474285051,1.23872087,110560.0,110550.0,0.25047361]
[1756474285250,1.23872087,110560.0,110550.0,0.25560361]
[1756474285483,1.23872087,110560.0,110550.0,0.25573303]
[1756474285698,1.23972087,110560.0,110550.0,0.25060303]
[1756474286118,0.01565885,110560.0,110550.0,0.25573303]
[1756474286312,1.23343718,110560.0,110550.0,0.34402935]
[1756474286554,1.23971788,110560.0,110550.0,0.25773303]
[1756474286757,0.00937516,110560.0,110550.0,0.34602935]
[1756474287168,0.00937516,110560.0,110550.0,0.68602935]
[1756474287388,1.23343718,110560.0,110550.0,0.68802935]
[1756474287584,1.22406202,110560.0,110550.0,0.25464303]
[1756474287800,1.23243805,110560.0,110550.0,0.25056297]
[1756474288003,1.23243805,110560.0,110550.0,0.25660297]
[1756474288171,1.23243805,110560.0,110550.0,0.25960297]
[1756474288368,1.50993605,110560.0,110550.0,0.07664936]
[1756474288534,1.50993605,110560.0,110550.0,0.08264936]
[1756474288535,1.52669389,110560.0,110550.0,0.08264936]
[1756474288751,1.34579664,110560.0,110550.0,0.26056297]
[1756474288949,1.43839757,110560.0,110550.0,0.07764936]
[1756474289150,1.47011568,110560.0,110550.0,0.08064936]
[1756474289392,1.46709568,110560.0,110550.0,0.26156297]
[1756474289601,1.28417843,110560.0,110550.0,0.25556297]
[1756474290260,1.28417843,110560.0,110550.0,0.25356297]
[1756474290694,1.46507568,110560.0,110550.0,0.25656297]
[1756474290911,1.46709568,110560.0,110550.0,0.26056297]
[1756474291125,1.46709568,110560.0,110550.0,0.07664936]
[1756474291126,1.555392,110560.0,110550.0,0.07664936]
[1756474291331,1.55539403,110560.0,110550.0,0.07364936]
[1756474291537,1.55539403,110560.0,110550.0,0.07864936]
[1756474291538,1.55841403,110560.0,110550.0,0.07864936]
[1756474291741,6.96266061,110560.0,110550.0,0.00912942]
[1756474291950,1.93057815,110560.0,110550.0,0.00123757]
[1756474292150,1.83926183,110560.0,110550.0,0.00123757]
[1756474292353,1.84228183,110560.0,110550.0,0.002]
[1756474293441,1.84228183,110560.0,110550.0,0.003]
[1756474294092,1.83926183,110560.0,110550.0,0.18491361]
[1756474294516,0.61519981,110560.0,110550.0,0.004]
[1756474294728,1.83926183,110560.0,110550.0,0.001]
[1756474294934,1.92467138,110560.0,110550.0,0.001]
[1756474295351,0.70060936,110560.0,110550.0,0.001]
[1756474295556,1.92467138,110560.0,110550.0,0.001]
[1756474296205,1.92769138,110560.0,110550.0,0.001]
[1756474296411,1.92467138,110560.0,110550.0,0.001]
[1756474296625,1.92467138,110560.0,110550.0,0.18191361]
[1756474296626,0.09328256,110560.0,110550.0,0.18191361]
[1756474296837,1.28518046,110560.0,110550.0,0.18395361]
[1756474297083,1.46607771,110560.0,110550.0,0.18395361]
[1756474297306,0.0002,110550.0,110540.0,0.18092914]
[1756474297513,1.22426202,110550.0,110540.0,0.18092998]
[1756474297720,1.27499105,110550.0,110540.0,0.18092998]
[1756474298124,1.27500721,110550.0,110540.0,0.18605998]
[1756474298309,1.27502193,110550.0,110540.0,0.18605998]
[1756474298557,1.27602193,110550.0,110540.0,0.18605998]
[1756474298765,0.05195991,110550.0,110540.0,0.18605998]
[1756474298979,1.27602193,110550.0,110540.0,0.18605998]
[1756474299441,1.27602193,110550.0,110540.0,0.18296998]
[1756474299655,1.27602193,110550.0,110540.0,0.18605998]
[1756474299858,1.27604711,110550.0,110540.0,0.18705998]
[1756474300522,1.27604856,110550.0,110540.0,0.18192998]
[1756474300752,1.81180071,110550.0,110540.0,0.001]
[1756474300965,6.84396483,110550.0,110540.0,0.001]
[1756474301178,6.89197831,110550.0,110540.0,0.001]
[1756474301592,6.85981419,110550.0,110540.0,0.001]
[1756474301821,6.9803239,110550.0,110540.0,0.001]
[1756474302252,1.40500836,110530.0,110510.0,0.25962783]
[1756474302461,1.22406202,110520.0,110510.0,0.25962783]
[1756474302664,1.44729762,110520.0,110510.0,0.18097888]
[1756474302875,1.25551323,110520.0,110510.0,0.18097888]
[1756474303091,1.25551323,110520.0,110510.0,0.18301888]
[1756474303295,1.25551323,110520.0,110510.0,0.18610888]
[1756474303721,1.43647595,110520.0,110510.0,0.25057888]
[1756474303924,1.43849595,110520.0,110510.0,0.25157909]
[1756474304136,1.44952229,110520.0,110510.0,0.25157909]
[1756474304320,1.44952229,110520.0,110510.0,0.18197909]
[1756474304626,1.49871666,110520.0,110510.0,0.18197909]
[1756474304839,1.84173666,110520.0,110510.0,0.001]
[1756474305046,1.86104022,110520.0,110510.0,0.001]
[1756474305253,1.84173131,110520.0,110510.0,0.001]
[1756474305711,0.18101185,110490.0,110480.0,0.0696]
[1756474305945,0.18101185,110490.0,110450.0,0.0696]
[1756474305946,0.18104462,110470.0,110450.0,0.0696]
[1756474306161,1.22608202,110460.0,110450.0,0.0696]
[1756474306378,1.240836,110460.0,110450.0,0.251154]
[1756474306596,1.44367321,110460.0,110450.0,0.00047659]
[1756474306777,1.87498953,110460.0,110450.0,0.00047659]
[1756474307030,6.89425503,110460.0,110450.0,0.00047659]
[1756474307248,6.87498953,110460.0,110450.0,0.00047659]
[1756474308015,6.87698953,110460.0,110450.0,0.00047659]
[1756474308632,6.87790117,110460.0,110450.0,0.00047659]
[1756474308842,6.87488117,110460.0,110450.0,0.00047659]
[1756474309056,6.88627261,110460.0,110450.0,0.00047659]
[1756474309494,6.92921447,110460.0,110450.0,0.00247659]
[1756474309710,8.20055668,110460.0,110450.0,0.00247659]
[1756474309913,8.20055668,110460.0,110450.0,1e-08]
[1756474309914,8.25430999,110460.0,110450.0,1e-08]
[1756474310126,0.5211102,110430.0,110420.0,0.0002]
[1756474310329,8.09631854,110430.0,110420.0,0.0002]
[1756474310450,8.10137854,110430.0,110420.0,0.00032942]
[1756474310855,6.87731652,110430.0,110420.0,0.00032942]
[1756474311448,6.85605851,110430.0,110420.0,0.00032942]
[1756474311651,6.85405851,110430.0,110420.0,0.00032942]
[1756474312220,8.16574411,110430.0,110420.0,0.00032942]
[1756474312422,8.20834156,110430.0,110420.0,0.00032942]
[1756474312623,8.23768293,110430.0,110420.0,0.00032942]
[1756474312820,0.65248925,110420.0,110410.0,0.0002]
[1756474313076,7.02206189,110420.0,110400.0,0.00163747]
[1756474313315,1.76616026,110400.0,110390.0,0.00079157]
[1756474313526,6.82419495,110400.0,110390.0,0.00079157]
[1756474313730,6.86996267,110400.0,110390.0,0.00079157]
[1756474314092,6.84902385,110400.0,110390.0,0.00079157]
[1756474314304,6.99034145,110400.0,110390.0,0.00079157]
[1756474314503,6.9712017,110400.0,110390.0,0.00079157]
[1756474314701,6.9732017,110400.0,110390.0,0.00079157]
[1756474314910,6.92018042,110400.0,110390.0,0.00079157]
[1756474315292,6.88895551,110400.0,110390.0,0.00079157]
[1756474315872,6.89095551,110400.0,110390.0,0.00079157]
[1756474316093,6.8784127,110400.0,110390.0,0.00079157]
[1756474316273,6.79604627,110400.0,110390.0,0.00079157]
[1756474316512,6.80110627,110400.0,110390.0,0.00079157]
[1756474316712,6.79804627,110400.0,110390.0,0.00079157]
[1756474316826,6.79604627,110400.0,110390.0,0.00079157]
[1756474317029,6.36218317,110400.0,110390.0,0.1819674]
[1756474317252,1.45504627,110400.0,110390.0,0.00583157]
[1756474317479,1.25794259,110400.0,110390.0,0.1870074]
[1756474317685,1.2567029,110400.0,110390.0,0.00583157]
[1756474317895,1.52815864,110400.0,110390.0,0.00079157]
[1756474318111,6.86615864,110400.0,110390.0,0.00079157]
[1756474318315,6.77786232,110400.0,110390.0,0.00079157]
[1756474318561,6.77986232,110400.0,110390.0,0.00079157]
[1756474318778,6.7611657,110400.0,110390.0,0.00579157]
[1756474319002,6.77766813,110400.0,110390.0,0.00579157]
[1756474319205,6.86796445,110400.0,110390.0,0.00979157]
[1756474319420,6.90510663,110400.0,110390.0,0.00979157]
[1756474319627,6.90510663,110400.0,110390.0,0.00479157]
[1756474319880,6.90204663,110400.0,110390.0,0.00479157]
[1756474320304,6.90410663,110400.0,110390.0,0.00479157]
[1756474320525,6.90410663,110400.0,110360.0,0.0002]
[1756474320526,0.18120866,110370.0,110360.0,0.0002]
[1756474320738,1.4710307,110370.0,110360.0,0.00317]
[1756474320936,1.43894824,110370.0,110360.0,0.00524]
[1756474321197,1.43894824,110370.0,110360.0,0.18646508]
[1756474321397,1.43894824,110370.0,110360.0,0.00524]
[1756474321604,1.43894824,110370.0,110360.0,0.00227]
[1756474321813,1.4390911,110370.0,110360.0,0.01027]
[1756474322021,1.25888244,110370.0,110360.0,0.19446508]
[1756474322229,1.24170703,110370.0,110360.0,0.19446508]
[1756474322444,1.24170703,110370.0,110360.0,0.18646508]
[1756474322655,1.24070703,110370.0,110360.0,0.18646508]
[1756474322863,1.24170703,110370.0,110360.0,0.19246508]
[1756474323283,1.24170703,110370.0,110360.0,0.19446508]
[1756474323937,0.01764501,110370.0,110360.0,0.19446508]
[1756474324147,0.01764501,110370.0,110360.0,0.2827614]
[1756474324360,0.01764501,110370.0,110360.0,0.6227614]
[1756474324779,0.01664501,110370.0,110360.0,0.6167614]
[1756474325044,0.01764501,110370.0,110360.0,0.6227614]
[1756474325466,1.24170703,110370.0,110360.0,0.2847614]
[1756474325680,1.24170703,110370.0,110360.0,0.26614508]
[1756474325887,1.24170703,110370.0,110360.0,0.25814508]
[1756474325888,0.01764501,110370.0,110360.0,0.25814508]
[1756474326101,0.01664501,110370.0,110360.0,0.3444414]
[1756474326517,0.01664501,110370.0,110360.0,0.3494414]
[1756474326720,1.24070703,110370.0,110360.0,0.3494414]
[1756474326947,1.24070703,110370.0,110360.0,0.25614508]
[1756474327158,1.24070703,110370.0,110360.0,0.25317508]
[1756474327365,1.24070703,110370.0,110360.0,0.25614508]
[1756474327612,1.24170703,110370.0,110360.0,0.26214508]
[1756474328048,1.22420488,110370.0,110360.0,0.25614508]
[1756474328265,1.24072378,110370.0,110360.0,0.25614508]
[1756474328477,1.24072378,110370.0,110360.0,0.26014508]
[1756474328685,1.03834383,110370.0,110360.0,0.26514508]
[1756474328913,1.03834383,110370.0,110360.0,0.26217508]
[1756474329132,1.03834383,110370.0,110360.0,0.26114508]
[1756474329343,1.24058092,110370.0,110360.0,0.26114508]
[1756474329552,0.0165189,110370.0,110360.0,0.26514508]
[1756474329774,0.0165189,110370.0,110360.0,0.3534414]
[1756474330232,1e-08,110370.0,110360.0,0.6934414]
[1756474330443,0.07683878,110420.0,110410.0,0.18114301]
[1756474330671,0.07698214,110420.0,110410.0,0.18618301]
[1756474330880,1.30104416,110420.0,110410.0,0.18618301]
[1756474331092,1.22420538,110420.0,110410.0,0.18618301]
[1756474331567,1.22420538,110420.0,110410.0,0.18114301]
[1756474331781,0.00014336,110420.0,110410.0,0.18114301]
[1756474331995,1.22420538,110420.0,110410.0,0.18618301]
[1756474332212,0.00472448,110440.0,110430.0,0.1811102]
[1756474332438,0.00472448,110440.0,110430.0,0.68412652]
[1756474332869,1.22406202,110440.0,110430.0,0.68412652]
[1756474333073,1.22406202,110440.0,110430.0,0.2558302]
[1756474333283,1.42145998,110440.0,110420.0,0.25079217]
[1756474333502,1.22406202,110430.0,110420.0,0.25079217]
[1756474333716,1.32907212,110430.0,110420.0,0.06968]
[1756474333942,0.52107994,110450.0,110440.0,0.1810938]
[1756474334153,1.77560466,110450.0,110430.0,0.18110021]
[1756474334379,1.41925461,110440.0,110420.0,0.25986293]
[1756474334592,1.22406202,110430.0,110420.0,0.25986293]
[1756474334811,0.36386185,110480.0,110450.0,0.18106365]
[1756474335058,5.01307418,110470.0,110460.0,0.18106101]
[1756474335308,1.6129463,110470.0,110460.0,0.18106101]
[1756474335467,1.2709463,110470.0,110460.0,0.18106101]
[1756474335683,1.45399092,110470.0,110450.0,0.18106365]
[1756474335900,6.40818357,110460.0,110450.0,0.18107741]
[1756474336113,1.25414072,110460.0,110450.0,0.18107741]
[1756474336351,1.23865675,110460.0,110450.0,0.18611741]
[1756474336576,0.18107741,110450.0,110430.0,0.19016571]
[1756474336786,1.22606202,110440.0,110430.0,0.1811102]
[1756474336998,1.52741063,110440.0,110420.0,0.1811266]
[1756474337222,1.52741063,110440.0,110430.0,0.1811102]
[1756474337223,0.02910349,110440.0,110430.0,0.1811102]
[1756474337433,1.23865675,110440.0,110430.0,0.1811102]
[1756474337880,0.01459473,110440.0,110430.0,0.1861502]
[1756474338099,1.43605431,110440.0,110420.0,0.1811266]
[1756474338302,1.22406202,110430.0,110420.0,0.1811266]
[1756474338513,1.23868141,110430.0,110420.0,0.1811266]
[1756474338717,0.01461939,110430.0,110420.0,0.1863566]
[1756474338933,0.18206185,110460.0,110440.0,0.18107763]
[1756474339142,1.25907605,110460.0,110450.0,0.18334087]
[1756474339352,1.25907605,110460.0,110450.0,0.18630741]
[1756474339353,0.01576433,110460.0,110450.0,0.18630741]
[1756474339567,0.01476433,110460.0,110450.0,0.18630741]
[1756474339779,0.00849816,110460.0,110450.0,0.27460373]
[1756474339993,0.00014331,110460.0,110450.0,0.61460373]
[1756474340653,1.22420533,110460.0,110450.0,0.18107741]
[1756474340868,0.18107741,110450.0,110440.0,0.06968]
[1756474341084,0.1810938,110440.0,110420.0,0.1821266]
[1756474341295,1.22406202,110430.0,110420.0,0.1821266]
[1756474341730,1.23795585,110450.0,110440.0,0.1810938]
[1756474341948,1.25463717,110450.0,110440.0,0.1810938]
[1756474342182,1.25255717,110450.0,110440.0,0.1810938]
[1756474342382,0.01460132,110450.0,110440.0,0.1863238]
[1756474342593,0.02502932,110450.0,110440.0,0.2560038]
[1756474342815,1.25534892,110450.0,110440.0,0.2517738]
[1756474343074,1.42182062,110450.0,110440.0,0.2517738]
[1756474343295,0.01460119,110450.0,110440.0,0.2570038]
[1756474343515,0.00834361,110450.0,110440.0,0.2570038]
[1756474343720,1.23240563,110450.0,110440.0,0.2549338]
[1756474343925,1.23240563,110450.0,110440.0,0.2527738]
[1756474344151,1.23240563,110450.0,110440.0,0.2549338]
[1756474344152,0.00834361,110450.0,110440.0,0.2549338]
[1756474344384,1.23240563,110450.0,110440.0,0.2549338]
[1756474344586,0.00834361,110450.0,110440.0,0.2549338]
[1756474344788,1.23240563,110450.0,110440.0,0.2549338]
[1756474344992,0.00834361,110450.0,110440.0,0.2580038]
[1756474345205,0.00834361,110450.0,110440.0,0.2549338]
[1756474345625,0.00834361,110450.0,110440.0,0.34630012]